bitfinex-derivatives/quotes_ETHF0:USTF0_20250830
["timestamp","ask_amount","ask_price","bid_price","bid_amount"]
[1756519972267,3.3861,4300.2,4300.1,3.2078]
[1756519972572,3.3861,4300.2,4300.1,7.1102]
[1756519974277,3.3861,4300.2,4300.1,4.8889]
[1756519975077,3.3861,4300.2,4300.1,3.4778]
[1756519975474,3.3861,4300.2,4298.3,0.2332316]
[1756519975475,2.0193,4300.1,4297.9,1.4111]
[1756519975683,2.0193,4298.6,4298.3,2.2213]
[1756519975872,2.0193,4298.6,4296.3,1.27578631]
[1756519975873,1.3668,4298.6,4298.5,3.6324]
[1756519976174,1.20621806,4301.5,4298.6,3.6324]
[1756519976380,3.3861,4299.6,4299.5,1.4111]
[1756519976678,3.3861,4299.6,4299.5,3.9024]
[1756519976879,3.3861,4299.6,4299.5,1.6811]
[1756519977069,3.3861,4299.6,4299.2,2.2213]
[1756519977273,3.3861,4299.4,4299.3,0.27]
[1756519977875,2.0193,4299.3,4299.2,2.2213]
[1756519978076,3.3861,4299.3,4299.2,2.4913]
[1756519978580,3.3861,4299.3,4299.2,3.9024]
[1756519979477,3.3861,4299.3,4299.2,3.6324]
[1756519979682,3.3861,4299.3,4299.2,3.9014]
[1756519981177,3.3861,4299.3,4298.7,2.2213]
[1756519981479,3.3861,4299.3,4298.8,2.4903]
[1756519981683,1.3668,4299.0,4298.9,0.269]
[1756519982177,3.3861,4298.9,4298.8,3.6324]
[1756519982379,3.3861,4298.9,4298.8,3.9014]
[1756519982876,3.3861,4298.9,4298.5,2.2213]
[1756519983072,2.0193,4299.1,4297.8,2.2213]
[1756519983276,1.3668,4298.0,4297.9,1.6801]
[1756519983478,1.3668,4298.0,4297.9,3.6324]
[1756519983782,6.5939,4298.7,4298.6,3.6324]
[1756519983977,6.5939,4298.7,4298.6,1.6801]
[1756519984476,6.5939,4298.7,4298.6,0.269]
[1756519984684,4.5746,4298.7,4298.6,0.269]
[1756519985277,6.5939,4298.7,4298.6,0.269]
[1756519985681,4.5746,4298.7,4298.6,0.269]
[1756519985878,6.5939,4298.7,4298.6,0.269]
[1756519986276,6.5939,4298.7,4298.1,2.2213]
[1756519986582,6.5939,4298.7,4297.3,33.497]
[1756519986583,3.3861,4298.3,4298.2,0.269]
[1756519986781,3.3861,4298.3,4297.7,2.2213]
[1756519987078,3.5487,4297.9,4297.4,2.0719]
[1756519987288,3.5487,4297.6,4297.5,3.7254]
[1756519987981,3.5487,4297.6,4297.5,3.4564]
[1756519988178,3.5487,4297.6,4297.5,3.7254]
[1756519989385,1.4899,4297.6,4297.3,33.497]
[1756519989578,3.5487,4297.4,4297.3,33.497]
[1756519989884,3.5487,4297.4,4297.3,35.8379]
[1756519990285,3.5487,4297.4,4297.3,33.497]
[1756519990479,3.5487,4297.4,4297.3,33.766]
[1756519991177,3.5487,4297.4,4297.3,35.8379]
[1756519991378,3.5487,4297.4,4297.3,33.497]
[1756519991575,3.5487,4297.4,4297.3,33.766]
[1756519991777,3.5487,4297.4,4296.6,2.0719]
[1756519991984,3.5487,4296.8,4296.7,3.7254]
[1756519992279,3.5487,4297.1,4296.0,3.2078]
[1756519992587,3.5487,4297.1,4296.1,2.3409]
[1756519992974,3.5487,4297.1,4296.2,0.268]
[1756519993174,3.5487,4297.1,4297.0,1.3845]
[1756519993380,3.5487,4297.1,4297.0,3.7244]
[1756519993580,3.5487,4297.1,4297.0,3.4564]
[1756519993879,3.5487,4297.1,4297.0,3.7244]
[1756519995183,3.5487,4297.1,4296.0,3.2078]
[1756519995486,6.7565,4297.2,4297.1,3.4564]
[1756519995681,6.7565,4297.2,4297.1,3.7244]
[1756519995881,6.7565,4297.2,4295.9,2.0719]
[1756519995882,4.6977,4297.2,4295.9,2.0719]
[1756519996081,2.0588,4297.1,4296.1,2.0719]
[1756519996281,2.0588,4297.1,4296.2,0.268]
[1756519996486,2.0588,4297.1,4296.3,2.0719]
[1756519996689,2.0588,4297.1,4296.4,0.268]
[1756519996881,3.5487,4296.6,4296.5,3.4564]
[1756519997381,1.4899,4296.6,4296.5,3.4564]
[1756519998788,1.4899,4296.6,4296.5,3.7244]
[1756519999883,3.5487,4296.6,4296.5,3.4564]
[1756520000091,3.5487,4296.6,4296.5,3.7244]
[1756520000587,3.5487,4296.6,4296.5,3.4564]
[1756520001291,3.5487,4296.6,4296.5,3.7244]
[1756520001491,3.5487,4296.6,4296.5,3.4564]
[1756520001690,3.5487,4296.6,4296.5,3.7244]
[1756520001888,1.4899,4296.6,4296.5,3.7244]
[1756520002089,3.2078,4296.7,4296.6,3.4564]
[1756520002289,4.6977,4296.7,4296.6,3.4564]
[1756520002585,6.7565,4296.7,4296.6,3.4564]
[1756520003493,6.7565,4296.7,4296.6,3.7244]
[1756520003786,2.0588,4297.2,4296.6,3.7244]
[1756520003986,4.17891547,4297.1,4297.0,3.4564]
[1756520004182,0.63021547,4297.1,4297.0,3.7244]
[1756520004389,3.2078,4297.3,4297.2,1.3845]
[1756520004584,3.83853817,4297.3,4297.2,3.7244]
[1756520004887,0.63073817,4297.3,4297.2,3.7244]
[1756520005093,0.63073817,4297.3,4297.2,3.4564]
[1756520005279,3.5487,4297.7,4297.6,1.3845]
[1756520005589,3.5487,4297.6,4297.5,1.3845]
[1756520005891,4.17987277,4297.6,4297.5,0.267]
[1756520007093,2.12107277,4297.6,4296.7,2.0719]
[1756520007390,0.63117277,4297.5,4296.9,2.0719]
[1756520007588,4.6977,4297.1,4297.0,1.6515]
[1756520007786,0.63117277,4297.1,4297.0,1.6515]
[1756520007986,0.63117277,4297.1,4297.0,3.7234]
[1756520008187,0.63117277,4297.4,4297.0,1.6515]
[1756520008401,0.63117277,4297.3,4297.1,2.0719]
[1756520008593,1.4899,4297.6,4297.5,3.4564]
[1756520008789,2.12186504,4297.6,4297.5,3.4564]
[1756520008995,2.12186504,4297.6,4297.5,3.7234]
[1756520009199,0.63196504,4297.6,4297.5,3.7234]
[1756520017198,3.2078,4297.8,4297.5,3.7234]
[1756520017399,0.63319747,4297.7,4297.6,3.4032]
[1756520018402,3.2078,4297.8,4297.7,3.4032]
[1756520018699,3.84094745,4297.8,4297.7,3.6702]
[1756520019396,3.2078,4297.8,4297.7,3.6702]
[1756520024607,6.6146,4297.8,4297.7,3.6692]
[1756520029202,4.5642,4297.8,4297.7,3.6692]
[1756520029416,3.2078,4297.8,4297.7,3.6692]
[1756520030404,4.5642,4297.8,4297.7,3.6692]
[1756520031712,6.6146,4297.8,4297.7,3.6692]
[1756520032314,3.4068,4298.9,4298.8,3.4032]
[1756520032509,3.4068,4298.9,4298.8,3.6682]
[1756520033008,1.3564,4299.0,4298.9,1.4175]
[1756520033312,2.0504,4299.3,4298.9,1.6825]
[1756520033511,3.4068,4299.3,4299.2,1.4175]
[1756520033707,3.4068,4299.3,4299.2,3.6682]
[1756520034113,3.4068,4299.3,4299.2,1.6825]
[1756520035014,3.4068,4299.3,4299.2,3.4032]
[1756520035216,3.4068,4299.3,4299.2,3.6682]
[1756520038919,3.4068,4299.3,4299.2,3.4032]
[1756520039118,3.4068,4299.3,4299.2,3.6682]
[1756520040619,0.265,4300.1,4299.2,3.6682]
[1756520040620,1.3564,4299.4,4299.3,3.4032]
[1756520040914,4.5642,4300.1,4300.0,1.4175]
[1756520041211,4.5642,4300.1,4300.0,3.6682]
[1756520041212,3.4068,4300.1,4300.0,3.6682]
[1756520041715,2.0504,4301.0,4300.1,1.9857]
[1756520041917,2.28293,4301.0,4299.9,1.9857]
[1756520042113,2.0504,4301.0,4300.1,1.9857]
[1756520042318,3.4068,4301.0,4300.9,3.4032]
[1756520042511,3.4068,4301.0,4300.9,3.6672]
[1756520044017,1.3564,4301.3,4301.2,1.4175]
[1756520044219,1.3564,4301.6,4301.5,1.4175]
[1756520044514,3.4068,4301.6,4301.5,3.6672]
[1756520044716,3.4068,4301.6,4301.5,1.6815]
[1756520045015,1.3564,4301.6,4301.5,0.264]
[1756520045214,3.4068,4301.6,4301.5,0.264]
[1756520046015,1.3564,4301.6,4301.5,0.264]
[1756520046314,1.58887,4301.6,4301.5,0.264]
[1756520046616,3.4068,4301.6,4301.5,0.264]
[1756520046817,3.4068,4301.6,4300.7,3.2078]
[1756520047016,3.4068,4301.6,4300.9,1.9835]
[1756520047322,1.3306,4301.1,4301.0,3.6837]
[1756520047515,3.4191,4301.1,4301.0,3.6837]
[1756520047711,3.4191,4301.1,4300.6,1.9835]
[1756520047917,3.4191,4301.1,4300.7,0.264]
[1756520048512,3.4191,4301.1,4300.7,2.2475]
[1756520048818,3.4191,4301.0,4300.9,3.4197]
[1756520049518,1.3306,4301.0,4300.9,3.4197]
[1756520049919,1.3306,4301.0,4300.9,3.40868414]
[1756520051316,1.3306,4302.0,4301.6,1.9835]
[1756520051518,3.4191,4301.5,4300.9,3.2078]
[1756520051722,1.3306,4301.1,4301.0,0.264]
[1756520051921,3.4191,4301.1,4301.0,0.264]
[1756520052120,3.4191,4301.1,4301.0,1.7002]
[1756520052319,3.4191,4301.1,4301.0,3.6837]
[1756520052919,3.4191,4301.1,4301.0,3.4197]
[1756520053225,2.0885,4302.0,4301.1,1.9835]
[1756520053524,1.3306,4301.4,4301.3,3.4197]
[1756520053825,5.2963,4302.1,4301.4,3.4197]
[1756520054121,3.4191,4302.1,4302.0,3.4197]
[1756520054326,3.4191,4302.1,4302.0,1.6992]
[1756520055327,3.4191,4302.1,4301.7,1.9835]
[1756520055520,3.4191,4302.1,4302.0,0.263]
[1756520056622,3.4191,4302.1,4301.7,1.9835]
[1756520056823,3.4191,4302.1,4301.8,0.263]
[1756520057025,3.4191,4302.1,4301.7,1.9835]
[1756520057219,3.2078,4301.8,4300.7,3.2078]
[1756520057420,3.4191,4300.8,4300.7,4.644]
[1756520057823,3.4191,4300.8,4300.7,6.8905]
[1756520058225,1.3306,4300.8,4300.7,6.8905]
[1756520060241,3.4191,4300.8,4300.7,6.6275]
[1756520060540,3.4191,4300.8,4300.7,3.2078]
[1756520060742,1.3306,4300.3,4300.0,5.1913]
[1756520060936,3.4191,4300.3,4300.2,33.769]
[1756520061330,3.4191,4300.3,4300.2,33.506]
[1756520061541,3.4191,4300.3,4300.2,35.7525]
[1756520062742,3.4191,4300.3,4300.2,35.4895]
[1756520062944,3.4191,4300.3,4300.2,35.7525]
[1756520064138,2.0885,4301.2,4300.3,1.9835]
[1756520064339,2.0885,4301.2,4300.5,1.9835]
[1756520064539,1.3306,4300.6,4300.5,3.4197]
[1756520064734,1.3306,4300.6,4300.5,3.6827]
[1756520064937,1.3306,4300.6,4300.5,3.4197]
[1756520065133,1.3306,4300.6,4300.5,3.6827]
[1756520065340,3.2078,4301.3,4300.5,3.6827]
[1756520065341,3.2078,4301.3,4300.6,1.9835]
[1756520065534,3.2078,4301.3,4301.2,3.4197]
[1756520065739,3.2078,4301.3,4301.2,3.6827]
[1756520067044,4.5384,4301.3,4301.2,3.6827]
[1756520067851,6.6269,4301.3,4301.2,3.6827]
[1756520068446,3.2078,4302.1,4301.2,2.11762]
[1756520068652,2.0885,4302.0,4301.3,1.9835]
[1756520068849,3.4191,4302.0,4301.9,1.4362]
[1756520069049,3.4191,4302.0,4301.9,1.6982]
[1756520069352,4.0521416,4302.0,4301.9,3.6817]
[1756520069644,3.4191,4301.4,4301.3,3.4197]
[1756520069849,3.4191,4301.4,4301.3,3.6817]
[1756520071050,3.4191,4301.4,4301.3,3.4197]
[1756520071253,3.4191,4301.4,4301.3,3.6817]
[1756520071852,3.4191,4301.4,4301.3,3.4197]
[1756520072052,3.4191,4301.4,4301.3,1.6982]
[1756520073953,3.4191,4301.4,4301.3,3.6817]
[1756520078758,5.115,4302.7,4301.4,1.969]
[1756520079057,3.2533,4302.7,4302.6,3.3395]
[1756520079359,1.3461,4302.8,4302.7,3.3395]
[1756520079559,3.2533,4302.8,4302.7,3.6015]
[1756520080553,3.2078,4303.7,4302.3,3.2078]
[1756520080554,1.3461,4302.5,4302.3,3.2078]
[1756520080757,0.262,4303.6,4302.3,6.5473]
[1756520080758,3.2533,4302.4,4302.3,6.5473]
[1756520080959,3.2533,4302.4,4302.3,6.8083]
[1756520081956,3.2533,4302.4,4302.3,3.6005]
[1756520083063,1.3461,4302.4,4302.3,3.6005]
[1756520083365,1.9072,4302.7,4302.6,1.3705]
[1756520083563,3.2533,4302.7,4302.6,3.6005]
[1756520084165,3.2078,4304.3,4303.8,1.969]
[1756520084463,1.9072,4304.6,4304.2,1.3705]
[1756520084766,3.2533,4304.6,4304.5,1.3705]
[1756520084963,3.2078,4305.1,4304.6,1.969]
[1756520085168,3.2533,4305.1,4305.0,1.3705]
[1756520085365,3.2533,4305.1,4305.0,1.6315]
[1756520085967,3.2533,4305.1,4305.0,3.6005]
[1756520087660,3.2533,4305.1,4305.0,3.3395]
[1756520087861,3.2533,4305.1,4305.0,3.6005]
[1756520091668,1.9072,4305.0,4304.5,1.969]
[1756520091876,3.2533,4304.6,4304.2,1.969]
[1756520092173,3.2533,4304.4,4304.3,1.6315]
[1756520092572,3.2533,4304.4,4304.3,3.6005]
[1756520092968,3.2533,4304.4,4304.3,1.6315]
[1756520093178,3.2533,4304.4,4304.3,0.261]
[1756520093971,1.3461,4304.2,4304.1,4.5783]
[1756520094272,3.2533,4304.2,4304.1,4.8393]
[1756520094775,1.9072,4305.2,4304.2,1.969]
[1756520094970,1.9072,4305.2,4304.4,1.969]
[1756520095166,3.2533,4305.2,4305.1,3.3395]
[1756520095367,3.2533,4305.2,4305.1,3.5995]
[1756520096775,1.3461,4305.2,4305.1,3.5995]
[1756520097171,3.2533,4305.2,4305.1,3.5995]
[1756520099482,3.2533,4305.2,4305.1,3.3395]
[1756520099782,3.2078,4305.5,4305.1,3.5995]
[1756520099978,3.2533,4305.4,4305.3,3.3395]
[1756520100172,3.2533,4305.4,4305.3,3.5995]
[1756520100979,1.3461,4305.4,4305.3,3.3395]
[1756520101178,1.3461,4305.4,4305.3,3.5995]
[1756520101686,3.2078,4305.5,4305.4,3.3395]
[1756520101879,3.2078,4305.5,4305.4,3.5995]
[1756520102071,6.4611,4305.5,4305.4,3.5995]
[1756520102278,6.4611,4305.5,4305.4,1.6305]
[1756520102581,6.4611,4305.5,4305.4,3.5995]
[1756520104784,6.4611,4305.5,4305.4,3.3395]
[1756520104980,6.4611,4305.5,4305.4,1.3705]
[1756520105285,6.4611,4305.5,4305.4,0.26]
[1756520106084,6.4611,4305.5,4304.8,1.969]
[1756520106384,6.4611,4305.5,4304.9,0.26]
[1756520106783,6.4611,4305.5,4304.8,1.969]
[1756520106983,6.4611,4305.5,4304.9,0.26]
[1756520107285,6.4611,4305.5,4305.0,0.26]
[1756520107585,6.4611,4305.5,4304.8,1.969]
[1756520107789,6.4611,4305.5,4304.9,0.26]
[1756520108278,4.5539,4305.5,4305.0,0.259]
[1756520108477,3.3956,4304.7,4304.6,3.2078]
[1756520108677,3.3956,4304.7,4304.6,0.259]
[1756520108875,2.0661,4304.6,4304.1,3.2078]
[1756520109088,3.3956,4304.2,4304.1,6.4464]
[1756520109280,3.3956,4304.2,4304.1,6.7054]
[1756520109781,1.3295,4304.2,4304.1,6.7054]
[1756520109988,3.3956,4304.6,4304.5,1.3127]
[1756520110187,3.3956,4304.6,4304.5,3.4976]
[1756520110387,2.0661,4305.4,4304.6,1.9259]
[1756520110582,3.3956,4304.8,4304.7,3.4976]
[1756520112790,3.3956,4304.8,4304.7,3.2386]
[1756520113090,1.3295,4304.8,4304.7,0.259]
[1756520113590,4.02539764,4304.8,4304.7,0.259]
[1756520113978,4.02539764,4304.8,4304.1,5.1337]
[1756520114182,3.3956,4304.2,4304.1,6.4464]
[1756520114383,3.3956,4304.2,4304.1,3.2078]
[1756520114592,3.3956,4304.2,4304.1,3.4668]
[1756520114887,4.02559405,4304.2,4304.1,0.259]
[1756520115288,4.02559405,4304.2,4303.5,3.2078]
[1756520115491,3.3956,4303.6,4303.5,4.5205]
[1756520115693,3.3956,4303.6,4303.5,3.4668]
[1756520116191,3.3956,4303.6,4303.5,3.2078]
[1756520116393,3.3956,4303.6,4303.5,4.7795]
[1756520116990,1.3295,4302.9,4302.8,1.9259]
[1756520117189,3.2078,4303.3,4302.8,0.259]
[1756520117389,3.3956,4302.9,4302.8,0.259]
[1756520118094,3.3956,4302.9,4302.8,3.4976]
[1756520120401,3.3956,4302.9,4302.8,3.2386]
[1756520120697,3.3956,4302.9,4302.8,3.4976]
[1756520120898,3.3956,4303.0,4302.9,3.2386]
[1756520121100,1.3295,4303.0,4302.9,3.2386]
[1756520121299,1.3295,4303.0,4302.9,3.4976]
[1756520121500,3.3956,4303.0,4302.9,3.4976]
[1756520121801,1.3295,4303.0,4302.9,3.4976]
[1756520122100,3.3956,4303.0,4302.9,3.4976]
[1756520122402,3.3956,4303.0,4302.9,6.4464]
[1756520122601,3.3956,4303.0,4302.9,6.7054]
[1756520123100,1.3295,4303.0,4302.9,6.7054]
[1756520123502,3.3956,4303.3,4303.2,1.3127]
[1756520123698,1.3295,4303.3,4303.2,3.4976]
[1756520123902,2.0661,4303.8,4303.3,1.9259]
[1756520124092,3.3956,4303.8,4303.7,1.3127]
[1756520124297,3.3956,4303.8,4303.7,1.5717]
[1756520124599,3.3956,4303.8,4303.7,3.4976]
[1756520125201,3.3956,4303.8,4303.7,0.259]
[1756520125202,1.3295,4303.8,4303.7,0.259]
[1756520125503,3.3956,4303.8,4303.7,0.258]
[1756520126304,3.3956,4303.8,4303.3,1.9259]
[1756520126498,3.3956,4303.8,4303.4,0.258]
[1756520126696,3.3956,4303.8,4302.9,3.62606]
[1756520126898,1.3295,4303.1,4303.0,1.5707]
[1756520127192,3.3956,4303.1,4303.0,3.4966]
[1756520127594,1.3295,4303.1,4303.0,3.4966]
[1756520127897,3.3956,4303.2,4303.1,1.3127]
[1756520128102,1.3295,4303.2,4303.1,0.258]
[1756520128303,3.3956,4303.2,4303.1,0.258]
[1756520128502,3.3956,4303.2,4303.1,3.4966]
[1756520134014,3.3956,4303.2,4303.1,3.2386]
[1756520134316,3.3956,4303.2,4302.9,3.2078]
[1756520134317,1.3295,4302.9,4302.5,1.9259]
[1756520134512,3.3956,4302.8,4302.7,3.2386]
[1756520134716,3.3956,4302.8,4302.7,3.4966]
[1756520136619,3.3956,4302.8,4302.7,3.2386]
[1756520136821,3.3956,4302.8,4302.7,3.4966]
[1756520137722,3.3956,4302.8,4302.7,3.2386]
[1756520138021,3.3956,4302.8,4302.7,3.4966]
[1756520139618,3.3956,4302.8,4302.7,3.2386]
[1756520140019,3.3956,4302.8,4302.7,3.4966]
[1756520140620,3.3956,4302.8,4302.7,0.258]
[1756520141325,3.3956,4302.8,4302.7,3.4195]
[1756520142217,1.2745,4302.5,4302.4,3.2078]
[1756520142517,3.1436,4302.5,4302.4,3.4648]
[1756520143822,3.1436,4302.5,4302.0,1.8691]
[1756520144030,3.1436,4302.5,4302.2,1.8691]
[1756520144326,3.1436,4301.9,4301.7,36.6708]
[1756520144631,3.1436,4301.2,4300.7,1.8691]
[1756520144831,3.1436,4300.7,4300.6,4.5002]
[1756520145032,3.1436,4300.7,4300.6,6.6263]
[1756520145728,1.8691,4301.3,4301.2,1.2924]
[1756520145937,3.1436,4301.3,4301.2,1.5494]
[1756520146228,3.1436,4301.3,4301.2,3.4185]
[1756520146530,1.2745,4301.3,4300.6,3.2078]
[1756520146727,3.1436,4300.7,4300.6,3.1615]
[1756520146924,3.1436,4300.7,4300.6,3.4185]
[1756520147124,3.1436,4301.3,4300.7,1.8691]
[1756520147430,3.1436,4301.3,4300.6,0.257]
[1756520147431,3.1436,4301.3,4301.2,3.1615]
[1756520147724,1.8691,4301.3,4301.2,0.257]
[1756520147931,3.1436,4301.3,4301.2,0.257]
[1756520148529,3.1436,4300.7,4300.6,6.3693]
[1756520148725,3.1436,4300.7,4300.6,6.6263]
[1756520149531,3.1436,4301.9,4301.8,1.2924]
[1756520149730,3.1436,4301.9,4301.8,3.4185]
[1756520150232,3.1436,4301.9,4301.8,1.5494]
[1756520150533,3.1436,4301.9,4301.8,3.4185]
[1756520150735,1.8691,4302.4,4301.9,1.8691]
[1756520150935,3.1436,4302.1,4302.0,3.4185]
[1756520151934,3.1436,4301.6,4301.5,3.1615]
[1756520152134,1.8691,4302.4,4301.6,1.8691]
[1756520152329,3.1436,4302.4,4302.3,1.2924]
[1756520152529,3.1436,4302.4,4302.3,1.5494]
[1756520152830,3.1436,4302.4,4301.5,3.2078]
[1756520153029,3.1436,4302.4,4301.7,1.8691]
[1756520153230,3.1436,4302.4,4301.8,0.257]
[1756520153436,3.1436,4301.8,4301.7,3.1615]
[1756520153629,3.1436,4301.8,4301.7,3.4185]
[1756520155636,3.1436,4301.8,4301.7,3.1615]
[1756520155937,3.1436,4301.8,4301.7,3.4185]
[1756520157232,3.1436,4301.8,4301.7,3.1615]
[1756520157438,3.1436,4301.8,4301.7,3.4185]
[1756520158838,3.1436,4301.3,4301.2,3.1615]
[1756520159241,1.2745,4301.3,4301.0,3.2078]
[1756520159441,1.2745,4301.3,4301.2,0.257]
[1756520159941,1.2745,4301.3,4300.4,0.4185]
[1756520159942,3.1436,4301.1,4300.4,1.8691]
[1756520160135,3.1436,4300.5,4300.4,3.1615]
[1756520160439,3.33932026,4300.5,4300.4,1.5484]
[1756520160636,3.33932026,4300.5,4300.4,1.2924]
[1756520160939,3.1436,4300.5,4300.4,3.4175]
[1756520161334,3.1436,4300.5,4300.4,3.1615]
[1756520161535,1.8691,4301.2,4300.5,1.8691]
[1756520161733,1.2745,4301.2,4301.1,3.1615]
[1756520161939,3.1436,4301.5,4301.4,1.2924]
[1756520162246,0.19565489,4301.5,4301.4,6.6253]
[1756520162839,1.8691,4302.0,4301.5,1.8691]
[1756520163033,3.1436,4302.0,4301.9,3.1615]
[1756520163229,0.19567675,4302.0,4301.9,3.4175]
[1756520163437,1.8691,4302.7,4302.0,1.8691]
[1756520163734,3.1436,4302.7,4302.6,1.2924]
[1756520163933,3.3393241,4302.7,4302.6,1.2924]
[1756520164137,3.33932308,4302.7,4302.6,1.5484]
[1756520164337,3.33932308,4302.7,4302.6,3.4175]
[1756520164541,3.33932308,4302.7,4302.6,3.1615]
[1756520164736,3.33932308,4302.7,4302.6,3.4175]
[1756520166245,1.47022308,4302.7,4302.6,3.4175]
[1756520166633,0.19572308,4302.7,4302.6,3.4175]
[1756520167243,3.1118,4303.0,4302.9,1.3563]
[1756520167445,1.43858282,4303.0,4302.9,3.4906]
[1756520167645,0.19592934,4303.0,4302.9,3.4906]
[1756520168946,1.8168,4303.6,4303.0,1.8783]
[1756520169245,3.0595,4303.6,4303.5,3.2346]
[1756520169446,3.0595,4303.6,4303.5,3.4906]
[1756520169447,3.25540307,4303.6,4303.5,3.4906]
[1756520169643,0.19590307,4303.6,4303.5,3.4906]
[1756520170036,0.19590307,4303.6,4303.5,6.6984]
[1756520170247,1.8168,4304.3,4303.5,4.8201]
[1756520170442,3.25534052,4304.2,4304.1,3.2346]
[1756520170638,3.25534052,4304.2,4304.1,3.4906]
[1756520171147,3.25535545,4304.2,4304.1,3.4906]
[1756520171348,1.43855545,4304.2,4304.1,3.4906]
[1756520171747,3.25535545,4304.2,4304.1,3.4906]
[1756520172743,3.25535545,4304.2,4304.1,3.2346]
[1756520172944,3.25535545,4304.2,4304.1,3.4906]
[1756520174545,3.0595,4304.2,4304.1,3.4906]
[1756520175142,1.8168,4304.1,4303.5,3.2078]
[1756520175342,3.0595,4303.7,4303.6,3.4906]
[1756520175547,1.2427,4303.7,4303.6,3.4906]
[1756520176047,1.2427,4303.7,4303.6,3.2346]
[1756520176349,1.8168,4304.1,4303.6,3.4906]
[1756520176550,3.0595,4304.3,4304.2,1.3563]
[1756520176745,3.25486325,4304.3,4304.2,3.4906]
[1756520178147,1.43806325,4304.3,4304.2,0.256]
[1756520178343,3.25486325,4304.3,4304.2,0.256]
[1756520180848,3.25486325,4304.3,4303.5,3.2078]
[1756520181053,1.2427,4303.8,4303.7,3.2346]
[1756520181253,1.2427,4303.8,4303.7,3.4896]
[1756520181752,1.8168,4304.0,4303.7,3.4896]
[1756520181956,6.2673,4304.4,4304.3,1.3563]
[1756520182151,6.46258565,4304.4,4304.3,3.4896]
[1756520184359,6.2673,4304.4,4304.3,3.4896]
[1756520184855,4.4505,4304.4,4304.3,3.4896]
[1756520185654,6.2673,4304.4,4304.3,3.4896]
[1756520186057,3.0595,4304.9,4304.8,1.3563]
[1756520186261,3.25475183,4304.9,4304.8,3.4896]
[1756520186651,0.19525183,4304.9,4304.8,3.4896]
[1756520186966,1.2427,4305.4,4305.3,1.3563]
[1756520187163,3.25475849,4305.4,4305.3,1.6113]
[1756520187360,3.25475849,4305.4,4305.3,3.4896]
[1756520188257,3.0595,4305.4,4305.3,3.4896]
[1756520188461,3.25475168,4305.4,4305.3,0.255]
[1756520188859,3.25475168,4305.4,4304.8,1.8783]
[1756520189063,3.25475168,4305.4,4305.3,1.3563]
[1756520189064,1.2427,4305.4,4305.3,1.3563]
[1756520189268,1.4379627,4305.4,4305.3,1.6113]
[1756520189563,3.2547627,4305.4,4305.3,3.4896]
[1756520190164,3.2547627,4305.4,4305.3,1.3563]
[1756520190356,3.2547627,4305.4,4305.3,0.255]
[1756520191063,3.2547627,4305.4,4305.0,1.8783]
[1756520191268,3.0595,4305.3,4305.2,1.3563]
[1756520191563,3.25438948,4305.3,4305.2,1.3563]
[1756520191751,3.25438948,4305.3,4305.2,3.2346]
[1756520192259,3.25438948,4305.3,4305.2,3.4896]
[1756520195469,3.25478471,4305.3,4305.2,3.4896]
[1756520195663,3.25478558,4305.3,4305.2,3.4896]
[1756520196866,3.25478558,4305.3,4305.2,3.2346]
[1756520197067,3.117,4304.6,4304.5,6.2298]
[1756520197268,3.31244028,4304.6,4304.5,6.4838]
[1756520197664,0.18329676,4306.6,4304.5,6.4838]
[1756520197665,5.1274,4306.4,4305.7,1.7805]
[1756520197868,6.3248,4306.4,4306.3,3.022]
[1756520198070,6.3248,4306.4,4306.3,3.276]
[1756520198272,6.3248,4306.4,4306.3,1.4955]
[1756520198975,6.3248,4306.4,4306.3,3.276]
[1756520199473,6.32386132,4306.4,4306.3,3.022]
[1756520199770,6.32386132,4306.4,4306.3,3.276]
[1756520200872,6.32386132,4306.4,4306.3,0.254]
[1756520201874,6.32386132,4306.4,4305.6,1.7805]
[1756520202072,6.32386132,4306.4,4305.5,3.2078]
[1756520202073,1.9196,4305.7,4305.5,3.2078]
[1756520202276,3.117,4305.6,4304.8,3.2078]
[1756520202475,3.117,4305.0,4304.9,3.022]
[1756520202676,3.117,4305.0,4304.9,3.276]
[1756520202878,3.117,4305.0,4304.9,1.4955]
[1756520203079,1.1974,4305.0,4304.9,0.254]
[1756520203375,3.117,4305.0,4304.9,0.254]
[1756520204781,3.117,4305.0,4304.9,3.276]
[1756520205075,3.117,4305.7,4305.4,1.7805]
[1756520205379,3.117,4305.7,4305.5,0.254]
[1756520205582,1.1974,4305.7,4304.9,1.7805]
[1756520205775,1.1974,4305.7,4305.0,0.254]
[1756520206170,3.2078,4305.9,4305.5,1.2415]
[1756520206381,1.9196,4306.2,4305.8,1.2415]
[1756520206680,3.117,4306.2,4306.1,3.022]
[1756520206876,3.117,4306.2,4306.1,3.276]
[1756520207079,1.1974,4306.2,4306.1,3.276]
[1756520207285,1.9196,4306.5,4306.1,3.276]
[1756520207478,1.9196,4306.9,4306.2,1.7805]
[1756520207677,3.117,4306.4,4306.3,3.276]
[1756520208581,1.1974,4306.4,4306.3,3.276]
[1756520209182,3.117,4306.4,4306.3,3.276]
[1756520209490,6.3248,4307.0,4306.9,1.2415]
[1756520209679,6.3248,4307.0,4306.9,1.4955]
[1756520209876,6.3248,4307.0,4306.9,0.254]
[1756520210480,3.2078,4307.0,4306.9,3.276]